Cogmind - Beta 16.1 @@@ ROGUE MODE // 2026.02.12 @ 15:39:33 Player: Wyvern Result: Destroyed by C-17 Slicer with Blade Saw Performance ------------- Evolutions (2) 1000 Regions Visited (4) 800 Robots Destroyed (39) 195 Value Destroyed (1629) 1629 Prototype IDs (7) 140 Alien Tech Used (0) 0 Bonus (241) 241 TOTAL SCORE: 4005 Bonus ------- High Alert Combat Kills 41 Entered Garrisons 200 Cogmind --------- Core Integrity 0/550 Matter 300/300 Energy 100/100 System Corruption 2% Temperature Cool (0) Movement Flying (40) Location -8/Garrison Parts ------- > --- POWER (2) -------- (None) > --- PROPULSION (4) --- Flight Unit > --- UTILITY (3) ------ (None) > --- WEAPON (2) ------- Katana > --- INVENTORY (5) ---- Flight Unit Compact Matter Pod (150) Authchip [R/Combat] Relay Coupler [NC] (28) Datajack Peak State ------------ > --- POWER ------------ Light Nuclear Core > --- PROPULSION ------- Improved Hover Unit VTOL Module VTOL Module VTOL Module > --- UTILITY ---------- Improved Heat Sink Melee Analysis Suite Melee Analysis Suite > --- WEAPON ----------- Advanced Beam Cannon Katana > --- INVENTORY -------- Ion Engine Heat Sink Small Storage Unit ECM Suite Datajack [Rating: 26] Favorites ----------- Power Light Nuclear Core Engine Ion Engine Power Core Light Nuclear Core Propulsion Aluminum Leg Leg Aluminum Leg Hover Unit Improved Hover Unit Flight Unit Flight Unit Utility Small Storage Unit Device Improved Heat Sink Storage Small Storage Unit Processor Melee Analysis Suite Protection Light Armor Plating Weapon Katana Energy Gun Medium Laser Energy Cannon Advanced Beam Cannon Ballistic Gun Assault Rifle Ballistic Cannon Improved Light Cannon Slashing Weapon Katana Build | -11 -10 -9 -8 -8 ------- Run | Yrd Mat Mat Mat Gar Slots Evolved 4 | . . 2 2 . Power 1 | . . . 1 . Propulsion 2 | . . 2 . . Utility 1 | . . . 1 . Weapon . | . . . . . Parts Attached 57 | 7 9 11 18 12 Power 9 | 1 1 2 3 2 Engine 4 | 1 1 . 2 . Core 5 | . . 2 1 2 Reactor . | . . . . . Propulsion 22 | 2 2 6 5 7 Treads . | . . . . . Leg 7 | 2 2 2 1 . Wheel . | . . . . . Hover 4 | . . 4 . . Flight 11 | . . . 4 7 Utility 16 | 2 2 3 7 2 Device 12 | 1 2 3 5 1 Storage 1 | 1 . . . . Processor 2 | . . . 2 . Hackware . | . . . . . Protection 1 | . . . . 1 Artifact . | . . . . . Weapon 10 | 2 4 . 3 1 Energy Gun 1 | 1 . . . . Energy Cannon 2 | . 2 . . . Ballistic Gun 2 | 1 . . 1 . Ballistic Cannon 2 | . 2 . . . Launcher . | . . . . . Special Weapon . | . . . . . Impact Weapon . | . . . . . Slashing Weapon 3 | . . . 2 1 Piercing Weapon . | . . . . . Special Melee Weapon . | . . . . . Unidentified Prototypes 1 | . 1 . . . Parts Lost 24 | . . 4 5 15 Power 5 | . . 1 1 3 Propulsion 12 | . . 3 3 6 Utility 6 | . . . 1 5 Weapon 1 | . . . . 1 Highest Loss Streak 8 | . . 4 4 8 To Critical Strikes . | . . . . . Average Backups 6 | 2 7 7 5 4 Power . | . 1 . 1 . Propulsion . | . 1 . . . Utility 3 | . 2 4 2 2 Weapon . | . 2 . . . Tool/Special . | . . . . . Unused Backups 17 | . 5 2 6 4 Power 2 | . 1 . 1 . Propulsion . | . . . . . Utility 9 | . . 2 4 3 Weapon 5 | . 4 . 1 . Tool/Special 1 | . . . . 1 Average Slot Usage (%) 83 | . 99 90 74 67 Engine 4 | . 14 . 1 . Core 6 | . . 10 7 8 Leg 10 | . 28 9 1 . Hover 7 | . . 26 4 . Flight 8 | . . . 17 20 Device 15 | . 13 11 19 18 Storage 6 | . 14 11 1 . Processor 1 | . . . 5 . Energy Cannon 7 | . 13 11 5 . Ballistic Cannon 6 | . 13 10 1 . Slashing Weapon 6 | . . . 8 17 Peak Build Rating 26 | 7 12 21 26 23 Average Rating 16 | 5 11 17 21 18 On Entrance 11 | . 7 12 17 23 Avg Prop Armor Cover (%) 6 | . . 4 6 . Naked Turns . | . . . . . Heaviest Build 26 | 15 20 20 26 15 Greatest Support 28 | 20 20 28 20 22 Greatest Overweight (x) 2 | . . 2 1 1 Average Overweight (x) . | . . . . . Largest Inventory Capacity 8 | 8 8 8 8 5 Average Capacity 6 | 6 8 8 5 5 Most Carried 8 | 5 8 8 8 5 Average Carried 6 | 2 7 7 5 4 Final Capacity 8 | 8 8 8 5 5 Final Carried 8 | 4 8 8 5 5 Class Distribution -------------------- 66% | Mutant 24% | Sprinter 5% | Scavenger-Sprinter 3% | Scavenger-Mutant Dominant Class ---------------- Mutant | -10/Materials Mutant | -9/Materials Sprinter | -8/Materials Sprinter | -8/Garrison Resources | -11 -10 -9 -8 -8 ----------- Run | Yrd Mat Mat Mat Gar Matter Collected 992 | 276 159 225 202 130 Remotely 143 | 143 . . . . Salvage Created 1381 | 68 132 412 347 422 Parts 99 | 3 12 28 17 39 Haulers Intercepted 1 | . . 1 . . Recyclers Shooed . | . . . . . Parts Field Recycled . | . . . . . Retrieved Matter . | . . . . . Parts Self-Destructed . | . . . . . Prevented . | . . . . . Parts Restored . | . . . . . Kills | -11 -10 -9 -8 -8 ------- Run | Yrd Mat Mat Mat Gar Combat Hostiles Destroyed 33 | . 5 8 7 13 Melee 20 | . . . 7 13 Cannons 13 | . 5 8 . . Classes Destroyed 11 | 1 4 3 1 2 Hauler 1 | . . 1 . . Recycler 2 | 1 . 1 . . Operator 1 | . 1 . . . Watcher 2 | . 1 1 . . Swarmer 9 | . 3 . . 6 Cutter 1 | . . . . 1 Grunt 14 | . 2 6 4 2 Brawler 1 | . . . . 1 Duelist 2 | . . 1 . 1 Sentry 5 | . . 1 2 2 Hunter 1 | . . . 1 . Best Kill Streak 5 | 1 4 5 5 4 Combat Bots Only 5 | . 3 3 5 4 Max Kills in Single Turn 1 | 1 1 1 1 1 Gunslinging . | . . . . . Exploded . | . . . . . Melee 1 | . . . 1 1 Uniques/NPCs Destroyed . | . . . . . Combat | -11 -10 -9 -8 -8 -------- Run | Yrd Mat Mat Mat Gar Hostile Shots Fired 256 | . 40 40 43 133 Missed 73 | . 6 11 15 41 Hits 183 | . 34 29 28 92 Melee 17 | . . 1 . 16 Projectile 166 | . 34 28 28 76 AOE 3 | . . . . 3 Critical Strikes 13 | . 1 1 1 10 Damage Taken 2153 | . 247 420 435 1051 Core 651 | . 74 21 142 414 Absorbed by Shields 286 | . 99 . . 187 Regen/Repaired (Parts) 116 | . . 116 . . Core Remaining (%) 88 | 100 70 94 . . Volleys Fired 60 | 2 21 33 4 . Largest 2 | 2 2 2 1 . Hottest 101 | 70 101 101 25 . Shots Fired 108 | 4 42 58 4 . Gun 8 | 4 . . 4 . Cannon 100 | . 42 58 . . Launcher . | . . . . . Special . | . . . . . Kinetic 52 | 2 21 25 4 . Thermal 56 | 2 21 33 . . Explosive . | . . . . . Electromagnetic . | . . . . . Robot Hit Streak 5 | 1 5 4 5 . Robot Miss Streak 9 | 1 9 5 . . Penetration Max . | . . . . . Secondary Targets . | . . . . . Shots Hit Robots 102 | 2 20 29 21 30 Core Hits 46 | 2 8 13 8 15 Critical Kills . | . . . . . Critical Parts Destroyed . | . . . . . Critical Strikes 6 | . . . 1 5 Sever 6 | . . . 1 5 Melee Attacks 89 | . . . 24 65 Impact . | . . . . . Slashing 89 | . . . 24 65 Piercing . | . . . . . Sneak Attacks 1 | . . . 1 . Combat Hostiles . | . . . . . Follow-up Attacks 8 | . . . . 8 Damage Inflicted 2672 | 23 411 632 726 880 Guns 77 | 23 . . 54 . Cannons 1043 | . 411 632 . . Explosions . | . . . . . Melee 1552 | . . . 672 880 Ramming . | . . . . . Kinetic 564 | 23 248 239 54 . Thermal 556 | . 163 393 . . Explosive . | . . . . . Electromagnetic . | . . . . . Impact . | . . . . . Slashing 1552 | . . . 672 880 Piercing . | . . . . . Highest Corruption 2 | . . . . 2 Average Corruption 2 | . . . . 2 Corruption Purged . | . . . . . Corruption Blocked . | . . . . . Overload Shots . | . . . . . Overflow Damage 34 | . 3 10 21 . Projectiles 13 | . 3 10 . . Explosions . | . . . . . Melee 21 | . . . 21 . Knockbacks 4 | . 3 1 . . Impact . | . . . . . Kinetic 4 | . 3 1 . . Secondary . | . . . . . Self-Inflicted Damage . | . . . . . Shots . | . . . . . Rammed . | . . . . . Targets Rammed . | . . . . . Kicked . | . . . . . Crushed . | . . . . . Highest Temperature 447 | 18 312 447 2 . Average Temperature 131 | 10 128 142 1 . Received Heat Transfer 678 | . 84 186 162 246 Effects 5 | . 1 4 . . Energy Bleed 2 | . 1 1 . . Interference 3 | . . 3 . . Siege Activations . | . . . . . Martial Activations . | . . . . . Shielding Activations . | . . . . . Robots Disrupted . | . . . . . Combat Hostiles . | . . . . . Robots Corrupted . | . . . . . Combat Hostiles . | . . . . . Parts Fried . | . . . . . Impact Corruptions . | . . . . . Robots Melted . | . . . . . Combat Hostiles . | . . . . . Parts Melted . | . . . . . Heat Transferred 999 | . 296 703 . . Parts Sabotaged . | . . . . . Parts Stolen . | . . . . . Parts Stripped . | . . . . . Power Chain Reactions . | . . . . . Alert | -11 -10 -9 -8 -8 ------- Run | Yrd Mat Mat Mat Gar Maximum Alert Level 2 | . . . . 2 Low Security (%) 79 | 100 100 100 100 16 Level 1 8 | . . . . 33 Level 2 12 | . . . . 50 Level 3 . | . . . . . Level 4 . | . . . . . Level 5 . | . . . . . High Security . | . . . . . Max Security . | . . . . . Peak Influence 664 | 5 78 184 165 664 Initial 91 | . . 1 39 91 Average 148 | 1 16 104 81 411 Influence Increases 1492 | 5 187 311 296 693 Destroy 0b10 Robot/C 660 | . 100 160 140 260 Destroy 0b10 Robot/NC 30 | 5 10 15 . . Destroy Leader 116 | . 22 44 40 10 Successful Hack 48 | . 9 2 9 28 Disable Machine 105 | . 45 45 15 . Anti-Garrison Action 100 | . . . . 100 Destroy Structure 43 | . 1 . 2 40 Partial Spotted 45 | . . . 15 30 Lose Combat Pursuer 345 | . . 45 75 225 Influence Decreases 858 | 5 182 221 251 199 Entered New Map 109 | . . 4 56 49 Time Decay 456 | 5 124 177 150 . Lost Part 235 | . . 40 45 150 Purge Threat 58 | . 58 . . . Squads Dispatched 4 | . . 1 3 . Investigation . | . . . . . Extermination . | . . . . . Reinforcement 4 | . . 1 3 . Assault . | . . . . . Garrison . | . . . . . Intercept . | . . . . . Searches Triggered . | . . . . . Construction Impeded . | . . . . . Haulers Reinforced . | . . . . . Active Scanning Responses . | . . . . . Cargo Convoy Interrupts . | . . . . . Stealth | -11 -10 -9 -8 -8 --------- Run | Yrd Mat Mat Mat Gar Distress Signals 3 | . . 2 1 . Communications Jammed . | . . . . . Distress Signals . | . . . . . Times Spotted 75 | . 11 17 18 29 Peak Tracking Total 9 | . 5 6 7 9 Tactical Retreats 11 | . . 3 3 5 ECM-based Alert Blocks 5 | . . 4 1 . Traps | -11 -10 -9 -8 -8 ------- Run | Yrd Mat Mat Mat Gar Traps Triggered 10 | . . . . 10 Indirectly . | . . . . . Trap Hack Attempts . | . . . . . Triggered . | . . . . . Disarmed 4 | . . . 4 . Reprogrammed . | . . . . . Reused . | . . . . . Traps Extracted . | . . . . . Installed . | . . . . . Triggered . | . . . . . Machines | -11 -10 -9 -8 -8 ---------- Run | Yrd Mat Mat Mat Gar Machines Disabled 9 | . 3 3 1 2 Max in Single Turn 1 | . 1 1 1 1 Garrison Relay 2 | . . . . 2 Machines Repaired . | . . . . . Machines Dismantled . | . . . . . Machines Sabotaged . | . . . . . Overloaded Fab Kills . | . . . . . Hacking | -11 -10 -9 -8 -8 --------- Run | Yrd Mat Mat Mat Gar Machines Accessed 12 | . 4 3 3 2 Terminals 7 | . 3 1 1 2 Fabricators . | . . . . . Repair Stations 3 | . 1 2 . . Recycling Units . | . . . . . Scanalyzers 1 | . . . 1 . Garrison Access 1 | . . . 1 . Total Hacks 30 | . 10 7 10 3 Successful 18 | . 4 5 7 2 Failed 12 | . 6 2 3 1 Catastrophic 1 | . . . 1 . Database Lockouts . | . . . . . Manual . | . . . . . Terminals 18 | . 8 2 5 3 Fabricators . | . . . . . Repair Stations 7 | . 2 5 . . Recycling Units . | . . . . . Scanalyzers 3 | . . . 3 . Garrison Access 2 | . . . 2 . Terminal Hacks 10 | . 4 1 3 2 Prototype ID Bank 3 | . 1 1 1 . Emergency Access Points 1 | . . . . 1 Alert Level 1 | . 1 . . . Unreport Threat 1 | . 1 . . . Locate Traps 1 | . 1 . . . Disarm Traps 1 | . . . 1 . Hauler Manifests 1 | . . . 1 . Patrol Navigation 1 | . . . . 1 Fabricator Hacks . | . . . . . Repair Station Hacks 4 | . . 4 . . Scan Component 3 | . . 3 . . Repair 1 | . . 1 . . Recycling Unit Hacks . | . . . . . Scanalyzer 2 | . . . 2 . Insert Component 1 | . . . 1 . Analyze 1 | . . . 1 . Garrison Access Hacks 2 | . . . 2 . Unlock Access 1 | . . . 1 . Coupler Status 1 | . . . 1 . Unauthorized Hacks . | . . . . . Terminals . | . . . . . Fabricators . | . . . . . Repair Stations . | . . . . . Recycling Units . | . . . . . Scanalyzers . | . . . . . Garrison Access . | . . . . . Data Cores Recovered 1 | . 1 . . . Used 1 | . 1 . . . Hacking Detections 9 | . 4 3 2 . Full Trace Events . | . . . . . Feedback Events . | . . . . . Feedback Blocked . | . . . . . Robot Schematics Acquired . | . . . . . Robots Built . | . . . . . Authchips . | . . . . . Time . | . . . . . Total Robot Build Rating . | . . . . . Part Schematics Acquired 1 | . . . 1 . Parts Built . | . . . . . Authchips . | . . . . . Time . | . . . . . Total Part Build Rating . | . . . . . Part Studies Acquired . | . . . . . Parts Repaired 1 | . . 1 . . Time 32 | . . 32 . . Parts Recycled . | . . . . . Recycled Matter . | . . . . . Retrieved Matter . | . . . . . Retrieved Components . | . . . . . Parts Scanalyzed 1 | . . . 1 . Part Schematics Acquired 1 | . . . 1 . Parts Damaged . | . . . . . Bothacking | -11 -10 -9 -8 -8 ------------ Run | Yrd Mat Mat Mat Gar Used RIF Installer . | . . . . . Robots Hacked . | . . . . . Non-combat . | . . . . . Combat . | . . . . . Robot Hacks Applied . | . . . . . Relay Couplers Released 8 | . . . . 8 Machine Destruction 8 | . . . . 8 Fabnet Peak Effective % . | . . . . . Robots Rewired . | . . . . . Allies Hacked . | . . . . . Hacks Repelled . | . . . . . Allies | -11 -10 -9 -8 -8 -------- Run | Yrd Mat Mat Mat Gar Total Allies . | . . . . . Largest Group . | . . . . . Highest-Rated Group . | . . . . . Highest-Rated Ally . | . . . . . Total Orders . | . . . . . Ally Attacks . | . . . . . Total Damage . | . . . . . Kills . | . . . . . Allies Corrupted . | . . . . . Allies Melted . | . . . . . Intel | -11 -10 -9 -8 -8 ------- Run | Yrd Mat Mat Mat Gar Active Infowar (turns) 115 | . . 56 59 . ECM 115 | . . 56 59 . Robot Analysis Total . | . . . . . Derelict Logs Recovered . | . . . . . Drone Launches . | . . . . . Drone Recoveries . | . . . . . Exploration | -11 -10 -9 -8 -8 ------------- Run | Yrd Mat Mat Mat Gar Turns Passed 1799 | 78 499 439 333 450 Spaces Moved 1663 | 46 309 294 468 546 Core 14 | 11 . . . 3 Treads . | . . . . . Legs 444 | 35 309 95 5 . Wheels . | . . . . . Hover 199 | . . 199 . . Flight 1006 | . . . 463 543 Fastest Speed 29 | 50 120 48 29 31 Average Speed 61 | 103 120 78 40 33 Slowest Speed 190 | 120 120 190 190 100 Overloaded Moves . | . . . . . Propulsion Burnouts . | . . . . . Robots Hopped 4 | . . . 4 . Potential Cave-ins . | . . . . . Cave-ins Triggered . | . . . . . Exploration Rate (%) 30 | 3 49 22 26 52 Regions Visited 4 Branch Regions . Pre-discovered Areas . | . . . . . Known Exits Taken 1 | . . . 1 . Unknown Exits Taken 3 | 1 1 1 . . Scrap Searched . | . . . . . Spaces Dug 2 | . . . 2 . Terrain Destroyed 3 | . 1 . 2 . Melee 2 | . . . 2 . Projectile 1 | . 1 . . . AOE . | . . . . . Terrain Rammed . | . . . . . Walls Destroyed . | . . . . . Machines Disabled . | . . . . . Actions | -11 -10 -9 -8 -8 --------- Run | Yrd Mat Mat Mat Gar Total 2218 | 72 399 444 573 730 Wait 149 | 7 31 83 25 3 Move 1652 | 45 308 293 460 546 Hop 4 | . . . 4 . Pick Up 56 | 11 14 13 11 7 Fast Attach 19 | . 2 1 10 6 Attach 22 | 7 1 5 4 5 Detach 5 | . 1 . 4 . Swap 24 | . 7 7 7 3 Drop 48 | . 14 9 20 5 Fire 60 | 2 21 33 4 . Melee 78 | . . . 24 54 Ram . | . . . . . Kick . | . . . . . Crush . | . . . . . Escape Stasis 101 | . . . . 101 Rewire . | . . . . . Trap . | . . . . . Miscellaneous . | . . . . . Route ------- -11/Scrapyard -10/Materials (discovered 2 exits: *Mat x2) -9/Materials -8/Materials -8/Garrison (discovered 2 exits: [*Mat x2]) History --------- Turn | Location | Event 38 | -11/Scrapyard | Discovered new exit (range 15) 79 | -11/Scrapyard | Entered Materials 264 | -10/Materials | Discovered new exit (range 12) 304 | -10/Materials | Build established: Mutant 571 | -10/Materials | Discovered new exit (range 5) 578 | -10/Materials | Entered another Materials area 578 | -9/Materials | Evolved 2 slots: Propulsion x2 839 | -9/Materials | Lost 4 parts (1p3n) 927 | -9/Materials | Discovered new exit (range 16) 973 | -9/Materials | Repaired Imp. Light Cannon 1017 | -9/Materials | Entered another Materials area 1017 | -8/Materials | Evolved 2 slots: Power x1, Utility x1 1192 | -8/Materials | Lost 4 parts (1p3n) 1350 | -8/Materials | Identified exit to Garrison 1350 | -8/Materials | Entered Garrison 1359 | -8/Garrison | Discovered new exit (range 5) 1392 | -8/Garrison | Triggered checkpoint 1436 | -8/Garrison | Garrison Relay disabled 1460 | -8/Garrison | Build established: Sprinter 1502 | -8/Garrison | Triggered checkpoint 1546 | -8/Garrison | Core integrity fell below 50% 1564 | -8/Garrison | Triggered checkpoint 1573 | -8/Garrison | Lost 5 parts (1p3n1u) 1618 | -8/Garrison | Garrison Relay disabled 1645 | -8/Garrison | Discovered new exit (range 14) 1648 | -8/Garrison | Triggered checkpoint 1778 | -8/Garrison | Core integrity fell below 20% 1800 | -8/Garrison | Destroyed by C-17 Slicer with Blade Saw Last Messages --------------- Field strength at 19. Field strength at 10. Field strength at 1. Stasis field depleted. Knocked back. C-17 Slicer knocked back. Weight Redist. System destroyed. System corrupted by crushing effect (+2). Katana destroyed. Lgt. Armor Plating destroyed. C-17 Slicer destroyed. Flight Unit destroyed. Lgt. Nuclear Core destroyed. Destroyed Reaction Control System. Flight Unit severed. Acquired Flight Unit. Destroyed Reaction Control System. Flight Unit destroyed. Imp. Heat Sink destroyed. Flight Unit destroyed. Map ----- +----------------------------------------------------+ | ??????????????+???+??+???????????????????????????? | | ###??????????????????????????????????????????????? | | #?????????????????????????????????????????????? | | ###+###???????????????????????????????????????? | | ??????????????????????????????????????? | | ??????????????????????????????????????? | | ??????????????????????????????????????? | | ## ##???????????????????????????????????????? | | ## ###??????????????????????????????????????? | | #??????????????????????????????????????? | | #??????????????????????????????????????? | | #??????????????????????????????????????? | | ???????????????????????????????????????? | | ## #??????????????????????????#######???????? | | ## ############################ # #???????? | | " # #???????? | | #########"####### #???????? | | [ #?????### ###??# ##???????? | | ##+ #### #### #?????#"#! =!#??## ##????????? | | ## #??# #??# #?????#"!! =%#???####?????????? | | ##### #??# #### #?????#!!=*[!####?????????????? | | ????# #??# + #?????#"!% ![" #?????????????? | | ????# #??###### #?????#"#/*=%## #?????????????? | | ????# #???????# #?????###= #### #####?????????? | | ????# ######### *######### ####"##!!##????????? | | ????# ; !%= c@ ## !#????????? | | ????# + = c #????????? | | ????###### ##### ##################!!##????????? | | ?????????# #???# #????????????????####?????????? | | ?????????# #???# #?????????????????????????????? | | ?????##??# #???# #?????????????????????????????? | | ?????#!!## #???# #?????????????????????????????? | | ?????# #???# #?????????????????????????????? | | ?????#!!## #???# #?????????????????????????????? | | ?????#!??# #?### #?????????????????????????????? | | ?????#???# ### #?????????????????????????????? | | ?????????# " #?????????????????????????????? | | ?????????# ### #?????????????????????????????? | | ?????????# #?### #?????????????????????????????? | | ?????????# #???# #?????????????????????????????? | | ????????## #???# #?????????????????????????????? | | ????????#" #???# #?????????????????????????????? | | ????????#T #???# #?????????????????????????????? | | ????????#""#???# #?????????????????????????????? | | ????????####???#[ #?????????????????????????????? | | ???????????????# *#?????????????????????????????? | | ???????????????#[ ###???????????????????????????? | | ???????????????# #???????????????????????????? | | ???????????????#= < #???????????????????????????? | | ???????????????# #???????????????????????????? | +----------------------------------------------------+ Best States ------------- Heat Dissipation 45 Energy Generation 21 Energy Capacity 325 Matter Stores 300 Matter Capacity 300 Sight Range 16 Terrain Scan Density 10 ECM Strength 1 Additional Mass Support 6 Armor Coverage 150 Evasion (%) 64 Melee Accuracy 10 Authchip Count 1 Item Schematics ----------------- ECM Suite | -8/Materials | Scanalyzed Robot Schematics ------------------ None Fabricated ------------ Nothing Repaired ---------- Imp. Light Cannon | 14% | -9/Materials Studied --------- None Alien Tech Used ----------------- None Achievements -------------- Dynamic Key Use The Force Challenges ------------ None Game ------ Seed ReflectiveShadeRailgun Manual? 0 Play Time 00:54:57 Cumulative 3.0 hours Start 2026.02.12 @ 14:41:04 End 2026.02.12 @ 15:39:33 Sessions 1 Manual Loads 0 Difficulty Rogue Special Mode None Game No. 5 Rogue 5 Adventurer 0 Explorer 0 Win Type - Total 0 Types 0/0/0/0/0/0/0/0/0/0 Lore% 1 Gallery% 6 Achievement% 6 Wizard Run 0 Options --------- Layout 1 ASCII 0 Keyboard 0 Movement Mouse Keybinds 0 Fullscreen 1 Font 32/SmallcapsGlow Map View 50x35 Zoom Use 0% Tactical HUD 0 Map Filters NONE Filters NONE Steam 0 RUN: 949cf2d7-1a13-43c5-9d5a-310aea85c32e